bitfinex/quotes_BTCUSD_20250512
["timestamp","ask_amount","ask_price","bid_price","bid_amount"]
[1747052617140,0.00311259,103950.0,103940.0,2.98868247]
[1747052617794,0.00311259,103950.0,103940.0,3.40498247]
[1747052618583,0.00311259,103950.0,103940.0,2.87498247]
[1747052619819,0.00311259,103950.0,103940.0,3.11982826]
[1747052620234,0.06281259,103950.0,103940.0,2.00422447]
[1747052620439,0.06281259,103950.0,103940.0,2.12182447]
[1747052622812,0.00311259,103950.0,103940.0,2.36667026]
[1747052623838,0.00311259,103950.0,103940.0,1.95037026]
[1747052624064,0.00311259,103950.0,103940.0,2.00747026]
[1747052624270,0.0606,103970.0,103950.0,0.54201955]
[1747052624485,0.06074686,103970.0,103960.0,1.87024734]
[1747052624709,0.06074686,103970.0,103960.0,1.8490389]
[1747052624924,0.07036427,103970.0,103960.0,1.7434969]
[1747052625128,0.07036427,103970.0,103960.0,1.45571069]
[1747052625344,0.07036427,103970.0,103960.0,1.42750969]
[1747052625747,0.07036427,103970.0,103960.0,1.20805069]
[1747052625950,0.28196311,103970.0,103960.0,0.85675925]
[1747052626180,0.28196311,103970.0,103960.0,0.87599648]
[1747052626386,0.29358117,103970.0,103960.0,0.85675925]
[1747052626593,0.28396376,103970.0,103960.0,0.87599667]
[1747052626809,0.28396376,103970.0,103960.0,0.88561538]
[1747052627011,0.28396376,103970.0,103960.0,0.8952339]
[1747052627222,0.2743457,103970.0,103960.0,0.89523334]
[1747052627633,0.28396376,103970.0,103960.0,0.88561491]
[1747052627837,0.2743457,103970.0,103960.0,0.65475858]
[1747052628047,0.2763457,103970.0,103960.0,0.65475858]
[1747052628265,0.2763457,103970.0,103960.0,0.66437766]
[1747052628461,0.2763457,103970.0,103960.0,0.65475858]
[1747052629057,0.26672745,103970.0,103960.0,0.86637814]
[1747052629270,0.26672736,103970.0,103960.0,0.87599685]
[1747052629674,0.27634487,103970.0,103960.0,0.87599685]
[1747052630952,0.26672736,103970.0,103960.0,0.88561547]
[1747052631182,0.27634477,103970.0,103960.0,0.88561547]
[1747052631599,0.25711004,103970.0,103960.0,0.89523334]
[1747052631807,0.26672736,103970.0,103960.0,0.88561491]
[1747052632033,0.26672736,103970.0,103960.0,0.89523334]
[1747052632245,0.03564686,103970.0,103960.0,2.29145564]
[1747052632460,0.00614686,103970.0,103960.0,2.29141564]
[1747052632665,0.06514686,103970.0,103960.0,1.36194664]
[1747052632838,0.06514686,103970.0,103960.0,1.22824764]
[1747052633053,0.06314686,103970.0,103960.0,1.52201864]
[1747052633222,0.06114686,103970.0,103960.0,1.55087864]
[1747052633621,0.26412755,103970.0,103960.0,0.66001087]
[1747052633869,0.07176437,103970.0,103960.0,0.88561509]
[1747052634286,0.06214686,103970.0,103960.0,0.88561509]
[1747052634487,0.08138169,103970.0,103960.0,0.88561509]
[1747052635133,0.08138169,103970.0,103960.0,0.91447709]
[1747052636148,0.08138169,103970.0,103960.0,1.25447709]
[1747052636354,0.07176418,103970.0,103960.0,1.25447709]
[1747052636750,0.08138169,103970.0,103960.0,1.25447709]
[1747052637996,0.06214686,103970.0,103960.0,1.35033139]
[1747052638246,0.06214686,103970.0,103960.0,1.54573639]
[1747052639713,0.06214686,103970.0,103960.0,1.3008906]
[1747052639885,0.06214686,103970.0,103960.0,1.54573639]
[1747052640292,0.06214686,103970.0,103960.0,1.35033139]
[1747052640709,0.08138215,103970.0,103960.0,1.1054856]
[1747052640920,0.28336376,103970.0,103960.0,0.97115087]
[1747052641121,0.28336376,103970.0,103960.0,1.21599676]
[1747052641350,0.2737457,103970.0,103960.0,1.22561519]
[1747052641585,0.08138215,103970.0,103960.0,1.22561519]
[1747052642603,0.07176437,103970.0,103960.0,1.22561519]
[1747052643023,0.08138206,103970.0,103960.0,1.22561519]
[1747052643229,0.08138197,103970.0,103960.0,1.22561519]
[1747052643451,0.08138197,103970.0,103960.0,0.74]
[1747052643452,0.28828655,103970.0,103960.0,0.74]
[1747052643665,0.27866886,103970.0,103960.0,0.74]
[1747052644926,0.26905089,103970.0,103960.0,0.98484579]
[1747052645155,0.26905089,103970.0,103960.0,1.19646535]
[1747052645372,0.28828655,103970.0,103960.0,1.2253212]
[1747052645584,0.28828599,103970.0,103960.0,1.21570212]
[1747052645791,0.06214686,103970.0,103960.0,1.20608341]
[1747052645976,0.06214686,103970.0,103960.0,2.23641171]
[1747052646193,0.06214686,103970.0,103960.0,1.41956471]
[1747052646442,0.06214686,103970.0,103960.0,1.29921773]
[1747052647051,0.07176418,103970.0,103960.0,1.06170673]
[1747052648504,0.06214686,103970.0,103960.0,1.28115373]
[1747052648688,0.07176427,103970.0,103960.0,1.28115373]
[1747052648892,0.06214686,103970.0,103960.0,1.28115373]
[1747052649123,0.07176418,103970.0,103960.0,1.28115373]
[1747052649272,0.06214686,103970.0,103960.0,1.28115373]
[1747052649849,0.07176418,103970.0,103960.0,1.28115373]
[1747052650227,0.08138159,103970.0,103960.0,1.06170673]
[1747052651309,0.07176418,103970.0,103960.0,1.28082373]
[1747052651499,0.07176418,103970.0,103960.0,1.06170673]
[1747052652422,0.28336247,103970.0,103960.0,1.0520883]
[1747052652639,0.29298025,103970.0,103960.0,0.94661557]
[1747052652905,0.28336293,103970.0,103960.0,0.96585271]
[1747052653089,0.07176437,103970.0,103960.0,0.9754716]
[1747052653443,0.07176427,103970.0,103960.0,0.9754716]
[1747052653645,0.08138178,103970.0,103960.0,0.9754716]
[1747052654494,0.07176427,103970.0,103960.0,0.9754716]
[1747052654703,0.08138178,103970.0,103960.0,0.9754716]
[1747052655149,0.07176427,103970.0,103960.0,0.9754716]
[1747052655350,0.06214686,103970.0,103960.0,0.9754716]
[1747052655612,0.07176418,103970.0,103960.0,0.9754716]
[1747052656924,0.06214686,103970.0,103960.0,0.9754716]
[1747052657130,0.07176418,103970.0,103960.0,0.9754716]
[1747052657340,0.08138159,103970.0,103960.0,0.9754716]
[1747052657985,0.07176418,103970.0,103960.0,0.9754716]
[1747052658216,0.09099928,103970.0,103960.0,0.9754716]
[1747052658495,0.09099928,103970.0,103960.0,1.0043336]
[1747052658699,0.09099919,103970.0,103960.0,1.0043336]
[1747052658952,0.0909991,103970.0,103960.0,1.0043336]
[1747052659226,0.28336228,103970.0,103960.0,0.97547757]
[1747052659465,0.2737457,103970.0,103960.0,0.52863102]
[1747052659697,0.26412801,103970.0,103960.0,0.52863102]
[1747052659940,0.26412801,103970.0,103960.0,0.49976902]
[1747052660167,0.27866886,103970.0,103960.0,0.49976902]
[1747052660637,0.26905089,103970.0,103960.0,0.49976902]
[1747052663360,0.27902081,103970.0,103960.0,0.49976902]
[1747052664572,0.28002081,103970.0,103960.0,0.49976902]
[1747052664809,0.28002081,103970.0,103960.0,0.15976902]
[1747052665038,0.28202081,103970.0,103960.0,0.15976902]
[1747052668399,0.26071955,103950.0,103940.0,0.97255763]
[1747052668669,0.27033918,103950.0,103940.0,0.94369063]
[1747052668879,0.26071955,103950.0,103940.0,1.09884484]
[1747052669095,0.06831936,103950.0,103940.0,1.34369063]
[1747052670023,0.0587,103950.0,103940.0,1.34369063]
[1747052670247,0.2945945,103960.0,103950.0,0.55163973]
[1747052670469,0.0588,103960.0,103950.0,0.80610488]
[1747052670688,0.06841825,103960.0,103950.0,0.80610488]
[1747052670872,0.07803659,103960.0,103950.0,0.80610488]
[1747052671091,0.08765511,103960.0,103950.0,1.20610488]
[1747052671510,0.09727382,103960.0,103950.0,1.20610488]
[1747052671724,0.08765511,103960.0,103950.0,1.20610488]
[1747052671934,0.2896555,103960.0,103950.0,1.20610488]
[1747052672196,0.28003679,103960.0,103950.0,1.20610488]
[1747052672418,0.0588,103960.0,103950.0,1.45095067]
[1747052672651,0.28698618,103970.0,103960.0,0.55161947]
[1747052672877,0.29660406,103970.0,103960.0,0.46608379]
[1747052673093,0.28698609,103970.0,103960.0,0.48532111]
[1747052673330,0.27736858,103970.0,103960.0,0.48532055]
[1747052673550,0.28698599,103970.0,103960.0,0.87570212]
[1747052673821,0.28698599,103970.0,103960.0,0.88532055]
[1747052674040,0.28698581,103970.0,103960.0,0.88532055]
[1747052674264,0.29660359,103970.0,103960.0,0.88532055]
[1747052674512,0.29860359,103970.0,103960.0,0.88532055]
[1747052674756,0.04686234,103970.0,103960.0,0.88532055]
[1747052674981,0.2584609,103970.0,103960.0,1.21570212]
[1747052675211,0.04686215,103970.0,103960.0,1.22532055]
[1747052675431,0.05847975,103970.0,103960.0,1.22532055]
[1747052675678,0.26046081,103970.0,103960.0,1.22532055]
[1747052675928,0.31656081,103970.0,103960.0,1.21570212]
[1747052676147,0.32617887,103970.0,103960.0,1.2060836]
[1747052676363,0.31456081,103970.0,103960.0,1.21570212]
[1747052676568,0.32417859,103970.0,103960.0,1.22532055]
[1747052676783,0.3241785,103970.0,103960.0,1.22532055]
[1747052678313,0.3241785,103970.0,103960.0,1.21570212]
[1747052678542,0.32417924,103970.0,103960.0,1.21570212]
[1747052678974,0.30963839,103970.0,103960.0,1.22532055]
[1747052679409,0.30002033,103970.0,103960.0,1.25418355]
[1747052679636,0.3096383,103970.0,103960.0,1.25418355]
[1747052679893,0.30963895,103970.0,103960.0,1.25418355]
[1747052680106,0.30002089,103970.0,103960.0,1.25418355]
[1747052680952,0.07880389,103970.0,103960.0,1.25418355]
[1747052681169,0.09803927,103970.0,103960.0,1.25418355]
[1747052681596,0.10765724,103970.0,103960.0,1.25418355]
[1747052682269,0.30002042,103970.0,103960.0,1.25418355]
[1747052682702,0.10765724,103970.0,103960.0,1.25418355]
[1747052682936,0.09803927,103970.0,103960.0,1.25418355]
[1747052683155,0.01108657,103970.0,103960.0,1.25418355]
[1747052683385,0.02138178,103970.0,103960.0,1.25418355]
[1747052683874,0.05028169,103970.0,103960.0,1.25418355]
[1747052684879,0.08789938,103970.0,103960.0,1.25418355]
[1747052685531,0.08789929,103970.0,103960.0,1.25418355]
[1747052686538,0.06866418,103970.0,103960.0,1.25418355]
[1747052686752,0.08789928,103970.0,103960.0,1.25418355]
[1747052686969,0.07828159,103970.0,103960.0,1.25418355]
[1747052687158,0.02138159,103970.0,103960.0,1.25418355]
[1747052687371,0.02138178,103970.0,103960.0,1.25418355]
[1747052687929,0.08118169,103970.0,103960.0,1.25418355]
[1747052688336,0.08118169,103970.0,103960.0,1.26378393]
[1747052688542,0.09079938,103970.0,103960.0,1.26378393]
[1747052688740,0.08118169,103970.0,103960.0,1.26378393]
[1747052690078,0.09079929,103970.0,103960.0,1.01893814]
[1747052690319,0.09079929,103970.0,103960.0,1.26378393]
[1747052690536,0.08118169,103970.0,103960.0,1.26378393]
[1747052690776,0.08118159,103970.0,103960.0,1.26378393]
[1747052691003,0.01176427,103970.0,103960.0,1.01893814]
[1747052691149,0.01176427,103970.0,103960.0,1.26378393]
[1747052691429,0.07978187,103970.0,103960.0,1.26378393]
[1747052691606,0.07016427,103970.0,103960.0,1.26378393]
[1747052691786,0.07978187,103970.0,103960.0,1.26378393]
[1747052691991,0.00214686,103970.0,103960.0,1.35963823]
[1747052692457,0.00214686,103970.0,103960.0,1.99963823]
[1747052692677,0.01176418,103970.0,103960.0,1.99963823]
[1747052693003,0.00214686,103970.0,103960.0,1.99963823]
[1747052693826,0.01176418,103970.0,103960.0,1.99963823]
[1747052694035,0.00214686,103970.0,103960.0,2.23491823]
[1747052694240,0.02138196,103970.0,103960.0,2.23491823]
[1747052694654,0.01176427,103970.0,103960.0,2.23491823]
[1747052695329,0.00214686,103970.0,103960.0,2.23491823]
[1747052695546,0.01176418,103970.0,103960.0,2.23491823]
[1747052695773,0.0309991,103970.0,103960.0,1.99007244]
[1747052695987,0.0883991,103970.0,103960.0,2.13906393]
[1747052696195,0.0883991,103970.0,103960.0,1.49906393]
[1747052696409,0.0309991,103970.0,103960.0,1.49906393]
[1747052696621,0.02138159,103970.0,103960.0,1.49906393]
[1747052696824,0.03099928,103970.0,103960.0,1.49906393]
[1747052697064,0.09129928,103970.0,103960.0,1.49906393]
[1747052697279,0.08168159,103970.0,103960.0,1.49906393]
[1747052697497,0.08168159,103970.0,103960.0,1.57461716]
[1747052697951,0.08168159,103970.0,103960.0,1.41441765]
[1747052698162,0.09129919,103970.0,103960.0,1.41441765]
[1747052698374,0.10091707,103970.0,103960.0,1.41441765]
[1747052698816,0.29328025,103970.0,103960.0,1.15028208]
[1747052699078,0.29328025,103970.0,103960.0,0.99008303]
[1747052699079,0.29328108,103970.0,103960.0,0.99008303]
[1747052699308,0.27404607,103970.0,103960.0,0.98046395]
[1747052699522,0.27404607,103970.0,103960.0,0.99008275]
[1747052699736,0.28366358,103970.0,103960.0,0.77846338]
[1747052699944,0.27404625,103970.0,103960.0,0.94198206]
[1747052700155,0.27404625,103970.0,103960.0,0.74960038]
[1747052700333,0.27404625,103970.0,103960.0,0.95160105]
[1747052700541,0.27404625,103970.0,103960.0,0.97083856]
[1747052700746,0.27404625,103970.0,103960.0,0.96121976]
[1747052700959,0.2836633,103970.0,103960.0,0.98045671]
[1747052701164,0.08168215,103970.0,103960.0,1.22465137]
[1747052701381,0.07206437,103970.0,103960.0,1.22465137]
[1747052701598,0.00214686,103970.0,103960.0,1.22465137]
[1747052701817,0.00214686,103970.0,103960.0,1.23425678]
[1747052702454,0.02138178,103970.0,103960.0,1.23425678]
[1747052702897,0.02138178,103970.0,103960.0,1.2246564]
[1747052703103,0.02138178,103970.0,103960.0,1.21505099]
[1747052703324,0.22336274,103970.0,103960.0,1.19581404]
[1747052703537,0.29138071,103970.0,103960.0,1.20543265]
[1747052703742,0.29138071,103970.0,103960.0,1.20543275]
[1747052703955,0.29138071,103970.0,103960.0,1.21505127]
[1747052705038,0.30099886,103970.0,103960.0,1.20543275]
[1747052705176,0.29138154,103970.0,103960.0,1.19581422]
[1747052705396,0.29138154,103970.0,103960.0,0.74]
[1747052705397,0.27214616,103970.0,103960.0,0.74]
[1747052705604,0.28108538,103970.0,103960.0,0.74]
[1747052705824,0.28108538,103970.0,103960.0,0.4]
[1747052707126,0.2810851,103970.0,103960.0,0.4]
[1747052709255,0.20200067,103960.0,103950.0,0.79583088]
[1747052709465,0.26280067,103960.0,103950.0,0.80543629]
[1747052709669,0.28203799,103960.0,103950.0,1.00342007]
[1747052709874,0.28203799,103960.0,103950.0,1.21505999]
[1747052710087,0.26280067,103960.0,103950.0,0.74960541]
[1747052711188,0.26280067,103960.0,103950.0,0.74]
[1747052711408,0.37319582,103960.0,103950.0,0.74]
[1747052711853,0.38213076,103960.0,103950.0,0.74]
[1747052712105,0.49957076,103960.0,103950.0,0.4]
[1747052712765,0.50957741,103960.0,103950.0,0.4]
[1747052714015,0.62701741,103960.0,103950.0,0.4]
[1747052714288,0.62901741,103960.0,103950.0,0.4]
[1747052715425,0.26182001,103950.0,103940.0,0.34]
[1747052715874,0.26182001,103950.0,103940.0,0.74]
[1747052717452,0.27636086,103950.0,103940.0,0.74]
[1747052719268,0.37221516,103950.0,103940.0,0.4]
[1747052719499,0.37421516,103950.0,103940.0,0.4]
[1747052719941,0.26213954,103940.0,103930.0,1.34960038]
[1747052720159,0.27176019,103940.0,103930.0,1.34960038]
[1747052720369,0.27176019,103940.0,103930.0,1.35922224]
[1747052720578,0.27176019,103940.0,103930.0,1.75922224]
[1747052721244,0.27176019,103940.0,103930.0,1.74960038]
[1747052723628,0.27176019,103940.0,103930.0,1.75922224]
[1747052723836,0.27176019,103940.0,103930.0,1.74960038]
[1747052724262,0.27176019,103940.0,103930.0,1.75922224]
[1747052724474,0.27176019,103940.0,103930.0,2.20547587]
[1747052724698,0.27176019,103940.0,103930.0,1.99379504]
[1747052725098,0.27176019,103940.0,103930.0,1.75922224]
[1747052725509,0.27176019,103940.0,103930.0,1.768844]
[1747052725957,0.27176019,103940.0,103930.0,1.74960038]
[1747052726143,0.27176019,103940.0,103930.0,2.0034169]
[1747052726470,0.27176019,103940.0,103930.0,2.20547578]
[1747052726816,0.27176019,103940.0,103930.0,2.18623225]
[1747052727033,0.27176019,103940.0,103930.0,2.01303866]
[1747052727253,0.27176019,103940.0,103930.0,2.20547587]
[1747052727465,0.21165954,103940.0,103930.0,2.22471857]
[1747052727665,0.23090029,103940.0,103930.0,2.22471875]
[1747052727879,0.24052113,103940.0,103930.0,2.22470277]
[1747052728093,0.24052113,103940.0,103930.0,2.23432416]
[1747052728305,0.23090103,103940.0,103930.0,2.21508128]
[1747052728500,0.27908075,103940.0,103930.0,2.22470295]
[1747052729108,0.27908075,103940.0,103930.0,1.98050829]
[1747052729310,0.27908075,103940.0,103930.0,2.23432453]
[1747052729510,0.27908075,103940.0,103930.0,2.24394602]
[1747052729780,0.27908075,103940.0,103930.0,2.23432453]
[1747052730159,0.27908075,103940.0,103930.0,2.21508128]
[1747052730361,0.27908075,103940.0,103930.0,2.21508119]
[1747052730598,0.27908075,103940.0,103930.0,2.22470277]
[1747052730808,0.27908075,103940.0,103930.0,2.21508119]
[1747052731641,0.27908075,103940.0,103930.0,2.22470277]
[1747052731852,0.27908075,103940.0,103930.0,2.21508119]
[1747052731985,0.27908075,103940.0,103930.0,2.22470277]
[1747052732400,0.27908075,103940.0,103930.0,2.22470268]
[1747052732605,0.28870168,103940.0,103930.0,2.22470268]
[1747052733053,0.28870168,103940.0,103930.0,2.23432426]
[1747052733283,0.28870168,103940.0,103930.0,2.22470277]
[1747052733499,0.26000168,103940.0,103930.0,2.21508119]
[1747052733708,0.26070168,103940.0,103930.0,2.21508119]
[1747052733910,0.29120168,103940.0,103930.0,2.21508128]
[1747052734168,0.28158112,103940.0,103930.0,2.21508119]
[1747052734615,0.28158112,103940.0,103930.0,2.22470295]
[1747052734843,0.28158112,103940.0,103930.0,2.23432444]
[1747052735497,0.27196019,103940.0,103930.0,2.23432444]
[1747052735917,0.27196019,103940.0,103930.0,2.23432453]
[1747052736399,0.27196019,103940.0,103930.0,2.21508128]
[1747052736619,0.27196019,103940.0,103930.0,2.22470295]
[1747052736843,0.27196019,103940.0,103930.0,2.21508119]
[1747052737063,0.27196019,103940.0,103930.0,2.21508128]
[1747052737287,0.27196019,103940.0,103930.0,2.22470295]
[1747052737556,0.27196019,103940.0,103930.0,2.13119934]
[1747052737759,0.27196019,103940.0,103930.0,2.14082101]
[1747052738204,0.27196019,103940.0,103930.0,2.11195572]
[1747052738408,0.27196019,103940.0,103930.0,2.12157758]
[1747052738609,0.27196019,103940.0,103930.0,2.13119925]
[1747052739251,0.21166019,103940.0,103930.0,2.13119916]
[1747052739464,0.21166019,103940.0,103930.0,1.97088644]
[1747052739680,0.24186019,103940.0,103930.0,2.14082065]
[1747052739867,0.27266019,103940.0,103930.0,2.14082065]
[1747052740110,0.27266019,103940.0,103930.0,2.15044204]
[1747052741182,0.27266019,103940.0,103930.0,2.14082065]
[1747052741656,0.27266019,103940.0,103930.0,2.13119916]
[1747052742419,0.27266019,103940.0,103930.0,2.14082065]
[1747052742626,0.27266019,103940.0,103930.0,2.15044195]
[1747052742831,0.27266019,103940.0,103930.0,2.14082065]
[1747052743231,0.21166019,103940.0,103930.0,2.15044195]
[1747052743468,0.25158112,103940.0,103930.0,2.15044195]
[1747052743676,0.22128047,103940.0,103930.0,2.15044195]
[1747052743872,0.23090131,103940.0,103930.0,2.15044195]
[1747052744076,0.23090131,103940.0,103930.0,2.16006316]
[1747052744541,0.30102224,103940.0,103930.0,2.14082065]
[1747052744760,0.29140131,103940.0,103930.0,2.16006334]
[1747052745169,0.30102224,103940.0,103930.0,2.15044204]
[1747052747158,0.30102224,103940.0,103930.0,2.16006334]
[1747052747586,0.29140131,103940.0,103930.0,2.16006334]
[1747052747809,0.30102224,103940.0,103930.0,2.16006334]
[1747052748858,0.24052224,103940.0,103930.0,2.15044204]
[1747052749068,0.29972224,103940.0,103930.0,2.15044204]
[1747052749495,0.23090131,103940.0,103930.0,2.16006334]
[1747052749697,0.23090131,103940.0,103930.0,2.15044204]
[1747052749698,0.24052224,103940.0,103930.0,2.15044204]
[1747052749908,0.02886177,103940.0,103930.0,2.16006325]
[1747052750122,0.23090131,103940.0,103930.0,2.16006334]
[1747052750322,0.23090131,103940.0,103930.0,2.13123625]
[1747052750474,0.24052224,103940.0,103930.0,2.13123625]
[1747052750679,0.24052224,103940.0,103930.0,2.14085755]
[1747052751086,0.03848261,103940.0,103930.0,2.1408569]
[1747052751283,0.02886177,103940.0,103930.0,2.1408569]
[1747052753372,0.06731926,103950.0,103940.0,0.22128038]
[1747052753578,0.08655862,103950.0,103940.0,0.3815931]
[1747052753743,0.29819817,103950.0,103940.0,0.3815931]
[1747052754126,0.00961926,103950.0,103940.0,1.28190582]
[1747052754342,0.02885844,103950.0,103940.0,1.28190582]
[1747052754725,0.22125863,103950.0,103940.0,1.28190582]
[1747052755178,0.22111309,103950.0,103940.0,1.28190582]
[1747052755381,0.22111309,103950.0,103940.0,1.1215931]
[1747052755618,0.23273291,103950.0,103940.0,1.1215931]
[1747052756062,0.23473291,103950.0,103940.0,1.1215931]
[1747052756303,0.0327128,103950.0,103940.0,1.1215931]
[1747052756541,0.23473291,103950.0,103940.0,1.1215931]
[1747052756970,0.22511309,103950.0,103940.0,1.1215931]
[1747052757163,0.22511309,103950.0,103940.0,1.10235226]
[1747052757369,0.23473291,103950.0,103940.0,1.1215931]
[1747052757588,0.23473272,103950.0,103940.0,1.1215931]
[1747052757823,0.27345272,103950.0,103940.0,1.12159329]
[1747052758040,0.30195272,103950.0,103940.0,1.12159329]
[1747052758696,0.292479,103950.0,103940.0,1.11197301]
[1747052758913,0.292479,103950.0,103940.0,1.13121422]
[1747052759321,0.28285955,103950.0,103940.0,0.90993365]
[1747052759531,0.27324001,103950.0,103940.0,0.74]
[1747052759744,0.26362019,103950.0,103940.0,0.74]
[1747052759951,0.27323992,103950.0,103940.0,1.11197282]
[1747052760224,0.27323992,103950.0,103940.0,1.10235226]
[1747052760432,0.27323992,103950.0,103940.0,1.11197291]
[1747052760884,0.27323992,103950.0,103940.0,1.11197301]
[1747052761584,0.28285919,103950.0,103940.0,1.12159357]
[1747052761833,0.28285919,103950.0,103940.0,1.12159366]
[1747052762492,0.28285919,103950.0,103940.0,1.11197301]
[1747052762952,0.28285919,103950.0,103940.0,1.12159366]
[1747052763137,0.28285919,103950.0,103940.0,0.95166029]
[1747052763601,0.28285919,103950.0,103940.0,0.96128094]
[1747052763734,0.27323974,103950.0,103940.0,0.95166029]
[1747052763970,0.27323974,103950.0,103940.0,0.96128094]
[1747052764161,0.26823974,103950.0,103940.0,0.96128094]
[1747052765096,0.25862001,103950.0,103940.0,0.96128094]
[1747052765940,0.0576,103950.0,103940.0,1.12159366]
[1747052766061,0.27923846,103960.0,103950.0,0.20202019]
[1747052766265,0.27923846,103960.0,103950.0,0.2116401]
[1747052766465,0.26961975,103960.0,103950.0,0.2116401]
[1747052766861,0.26961975,103960.0,103950.0,0.62125964]
[1747052767075,0.26961947,103960.0,103950.0,0.78157227]
[1747052767279,0.28223771,103960.0,103950.0,0.79119163]
[1747052767490,0.065,103960.0,103950.0,0.79119163]
[1747052767696,0.01661825,103960.0,103950.0,1.14079704]
[1747052767949,0.02623668,103960.0,103950.0,1.14079704]
[1747052768175,0.02623668,103960.0,103950.0,1.15039742]
[1747052768371,0.01151953,103960.0,103950.0,1.15039742]
[1747052768585,0.02113796,103960.0,103950.0,1.15039742]
[1747052768789,0.03075648,103960.0,103950.0,1.15039742]
[1747052769002,0.01151953,103960.0,103950.0,1.15039742]
[1747052769184,0.02113796,103960.0,103950.0,1.15039742]
[1747052769832,0.03075648,103960.0,103950.0,1.15039742]
[1747052770050,0.04999399,103960.0,103950.0,0.9900847]
[1747052770232,0.0499939,103960.0,103950.0,1.15039742]
[1747052771615,0.02113796,103960.0,103950.0,1.15039742]
[1747052771845,0.03075658,103960.0,103950.0,1.15039742]
[1747052772074,0.02113796,103960.0,103950.0,1.15039742]
[1747052772299,0.02113796,103960.0,103950.0,1.21049742]
[1747052772740,0.02113796,103960.0,103950.0,1.15039742]
[1747052773188,0.02113787,103960.0,103950.0,1.15039742]
[1747052773426,0.00190128,103960.0,103950.0,1.15039742]
[1747052773653,0.00190128,103960.0,103950.0,1.17979742]
[1747052774364,0.01151962,103960.0,103950.0,0.9900847]
[1747052774596,0.01151953,103960.0,103950.0,1.17979742]
[1747052774823,0.02113796,103960.0,103950.0,1.17979742]
[1747052775050,0.02113787,103960.0,103950.0,1.15039742]
[1747052775988,0.02113787,103960.0,103950.0,1.78039742]
[1747052777448,0.01151953,103960.0,103950.0,1.78039742]
[1747052777678,0.01151953,103960.0,103950.0,1.15039742]
[1747052778709,0.03075649,103960.0,103950.0,1.15039742]
[1747052778914,0.06045639,103960.0,103950.0,1.15039742]
[1747052779120,0.07963787,103960.0,103950.0,1.15039742]
[1747052780424,0.08925639,103960.0,103950.0,1.15039742]
[1747052780626,0.07963787,103960.0,103950.0,1.78039742]
[1747052781216,0.07463787,103960.0,103950.0,1.78039742]
[1747052782372,0.04583787,103960.0,103950.0,1.78039742]
[1747052782606,0.26814622,103970.0,103960.0,0.22123808]
[1747052782860,0.26814622,103970.0,103960.0,0.3815508]
[1747052783151,0.05654686,103970.0,103960.0,0.73116923]
[1747052783386,0.07578206,103970.0,103960.0,1.13116923]
[1747052783611,0.22336339,103970.0,103960.0,1.12155099]
[1747052783876,0.2806633,103970.0,103960.0,1.13116961]
[1747052784101,0.08830012,103970.0,103960.0,1.13116961]
[1747052784328,0.09230012,103970.0,103960.0,1.14078804]
[1747052785443,0.09630012,103970.0,103960.0,1.14078804]
[1747052785741,0.2886633,103970.0,103960.0,1.14078804]
[1747052785887,0.09630012,103970.0,103960.0,1.14078804]
[1747052786335,0.08668206,103970.0,103960.0,1.14078804]
[1747052786507,0.09629966,103970.0,103960.0,1.14078804]
[1747052786770,0.10591754,103970.0,103960.0,1.14078804]
[1747052787391,0.09629966,103970.0,103960.0,1.14078804]
[1747052787638,0.10591763,103970.0,103960.0,1.14078804]
[1747052787846,0.10591754,103970.0,103960.0,1.14078804]
[1747052788545,0.09629966,103970.0,103960.0,1.14078804]
[1747052788751,0.29828136,103970.0,103960.0,0.94200076]
[1747052788925,0.29828118,103970.0,103960.0,0.9708567]
[1747052789135,0.29828118,103970.0,103960.0,1.13116942]
[1747052789282,0.29828118,103970.0,103960.0,1.12155099]
[1747052789482,0.09630003,103970.0,103960.0,1.12155099]
[1747052789686,0.09630003,103970.0,103960.0,1.13116951]
[1747052789888,0.28866321,103970.0,103960.0,1.14078794]
[1747052790103,0.28866321,103970.0,103960.0,1.12155099]
[1747052790320,0.29828118,103970.0,103960.0,1.13116961]
[1747052790511,0.28866321,103970.0,103960.0,1.14078804]
[1747052790745,0.28866321,103970.0,103960.0,1.13116961]
[1747052790746,0.29828118,103970.0,103960.0,1.13116961]
[1747052790953,0.29828118,103970.0,103960.0,1.14078813]
[1747052791158,0.29828118,103970.0,103960.0,1.13116961]
[1747052791563,0.28486274,103970.0,103960.0,1.14078804]
[1747052792623,0.01976418,103970.0,103960.0,1.30110076]
[1747052792827,0.01014686,103970.0,103960.0,1.30110076]
[1747052793644,0.00614686,103970.0,103960.0,1.30110076]
[1747052794226,0.00814686,103970.0,103960.0,1.30110076]
[1747052794863,0.01376418,103970.0,103960.0,1.30110076]
[1747052795065,0.02338169,103970.0,103960.0,1.30110076]
[1747052795270,0.02538169,103970.0,103960.0,1.30110076]
[1747052796499,0.01576418,103970.0,103960.0,1.30110076]
[1747052797350,0.00614686,103970.0,103960.0,1.44925506]
[1747052797783,0.0534,103990.0,103980.0,0.56119526]
[1747052797991,0.05349415,103990.0,103980.0,0.89142611]
[1747052798257,0.00209415,103990.0,103980.0,0.90102649]
[1747052798481,0.02132546,103990.0,103980.0,0.90102649]
[1747052798694,0.01170971,103990.0,103980.0,1.30102649]
[1747052798899,0.06530971,103990.0,103980.0,1.30102649]
[1747052799115,0.07492546,103990.0,103980.0,1.30102649]
[1747052799574,0.07692546,103990.0,103980.0,1.30102649]
[1747052799782,0.08645322,103990.0,103980.0,1.14071377]
[1747052799994,0.08845322,103990.0,103980.0,1.14071377]
[1747052800226,0.09806925,103990.0,103980.0,1.30102649]
[1747052800438,0.08645322,103990.0,103980.0,1.14071377]
[1747052800645,0.09606925,103990.0,103980.0,1.14071377]
[1747052800854,0.09606925,103990.0,103980.0,1.30102649]
[1747052801073,0.09606925,103990.0,103980.0,1.13109719]
[1747052801074,0.29039617,103990.0,103980.0,1.13109719]
[1747052801288,0.29039599,103990.0,103980.0,1.21483128]
[1747052801499,0.30001275,103990.0,103980.0,1.22444814]
[1747052801711,0.28078088,103990.0,103980.0,1.22889447]
[1747052801918,0.28078088,103990.0,103980.0,1.24812791]
[1747052802159,0.28078088,103990.0,103980.0,1.23851133]
[1747052802377,0.28078088,103990.0,103980.0,1.2481281]
[1747052803609,0.28078088,103990.0,103980.0,1.23851133]
[1747052803817,0.28078088,103990.0,103980.0,1.22889456]
[1747052804241,0.28078088,103990.0,103980.0,1.23851151]
[1747052804561,0.28078088,103990.0,103980.0,1.22889456]
[1747052804782,0.26154855,103990.0,103980.0,1.0173157]
[1747052804988,0.26154855,103990.0,103980.0,0.4]
[1747052805195,0.0728351,103970.0,103960.0,0.63753808]
[1747052805395,0.08245298,103970.0,103960.0,0.89120332]
[1747052805599,0.08245298,103970.0,103960.0,1.29120332]
[1747052805799,0.08245298,103970.0,103960.0,1.63120332]
[1747052806082,0.06321741,103970.0,103960.0,1.4080538]
[1747052806375,0.0824527,103970.0,103960.0,1.60040589]
[1747052806828,0.07283492,103970.0,103960.0,1.60040589]
[1747052807015,0.08245261,103970.0,103960.0,1.60440589]
[1747052807257,0.0536,103970.0,103960.0,1.60440589]
[1747052807494,0.06201658,103980.0,103970.0,0.22121653]